Cogmind - Beta 13 @@@ ROGUE MODE // 2024.04.17 @ 01:42:58 Player: Nebula avali Result: Destroyed by G-50 Soldier with Heavy Laser Performance ------------- Evolutions (1) 500 Regions Visited (6) 1200 Robots Destroyed (10) 50 Value Destroyed (97) 97 Prototype IDs (1) 20 Alien Tech Used (0) 0 Bonus (892) 892 TOTAL SCORE: 2759 Bonus ------- Follower Combat Kills 292 Met Imprinter 300 Was Imprinted 300 Cogmind --------- Core Integrity 0/400 Matter 300/300 Energy 100/100 System Corruption 0% Temperature Cool (9) Movement Core (150) Ox2 Location -6/Proximity Caves Parts ------- > --- POWER (1) -------- (None) > --- PROPULSION (2) --- (None) > --- UTILITY (4) ------ (None) > --- WEAPON (2) ------- Heavy Mace Great Axe > --- INVENTORY (5) ---- Rocket Launcher Rocket Launcher Rocket Launcher CR-A16's Pointy Stick GAL Module Peak State ------------ > --- POWER ------------ Light Nuclear Core > --- PROPULSION ------- Armored Treads Armored Treads > --- UTILITY ---------- Advanced Heat Sink > --- WEAPON ----------- Heavy Mace Great Axe > --- INVENTORY -------- Rocket Launcher Rocket Launcher Rocket Launcher CR-A16's Pointy Stick GAL Module [Rating: 22] Favorites ----------- Power Light Fission Core Engine Ion Engine Power Core Light Fission Core Propulsion Armored Treads Treads Armored Treads Leg Aluminum Leg Hover Unit Improved Hover Unit Utility Small Storage Unit Device Improved Sensor Array Storage Small Storage Unit Hackware Hacking Suite Protection Improved Light Armor Plating Weapon Great Axe Energy Gun Small Laser Ballistic Gun Improved Assault Rifle Launcher Rocket Launcher Special Weapon Mining Laser Impact Weapon Heavy Mace Slashing Weapon Great Axe Build | -11 -10 -10 -9 -9 -7 -6 ------- Run | Yrd Mat Min Mat Min Zio Pro Slots Evolved 2 | . . . 2 . . . Power . | . . . . . . . Propulsion . | . . . . . . . Utility 2 | . . . 2 . . . Weapon . | . . . . . . . Parts Attached 19 | . 1 2 7 . 6 3 Power 4 | . . . 1 . 1 2 Engine 2 | . . . 1 . . 1 Core 2 | . . . . . 1 1 Reactor . | . . . . . . . Propulsion 4 | . . . 2 . 2 . Treads 2 | . . . . . 2 . Leg . | . . . . . . . Wheel . | . . . . . . . Hover 2 | . . . 2 . . . Flight . | . . . . . . . Utility 4 | . . 1 2 . . 1 Device 2 | . . . 1 . . 1 Storage . | . . . . . . . Processor . | . . . . . . . Hackware 1 | . . . 1 . . . Protection 1 | . . 1 . . . . Artifact . | . . . . . . . Weapon 7 | . 1 1 2 . 3 . Energy Gun . | . . . . . . . Energy Cannon . | . . . . . . . Ballistic Gun 1 | . . . 1 . . . Ballistic Cannon . | . . . . . . . Launcher 1 | . . . 1 . . . Special Weapon 1 | . . 1 . . . . Impact Weapon 1 | . . . . . 1 . Slashing Weapon 3 | . 1 . . . 2 . Piercing Weapon . | . . . . . . . Special Melee Weapon . | . . . . . . . Unidentified Prototypes 1 | . . . 1 . . . Parts Lost 9 | . . . 4 . . 5 Power 3 | . . . 1 . . 2 Propulsion 2 | . . . . . . 2 Utility 4 | . . . 3 . . 1 Weapon . | . . . . . . . Highest Loss Streak 4 | . . . 3 . . 4 To Critical Strikes 1 | . . . . . . 1 Average Slot Usage (%) 66 | . 85 84 86 55 55 60 Engine 5 | . 14 14 8 11 . . Core 6 | . . . . . 10 9 Treads 9 | . . . . . 14 21 Leg 9 | . 28 28 16 . . . Hover 4 | . . . 5 22 7 . Device 1 | . . . 7 . . 7 Storage 4 | . 14 14 8 . . . Protection 3 | . . 11 9 . . . Launcher 3 | . . . 3 11 6 . Impact Weapon 4 | . . . . . 5 11 Slashing Weapon 11 | . 7 14 11 11 9 11 Naked Turns . | . . . . . . . Heaviest Build 19 | 12 13 16 19 9 15 14 Greatest Support 40 | 20 20 20 20 14 40 40 Greatest Overweight (x) 3 | . . . 2 . 1 3 Average Overweight (x) . | . . . . . . . Largest Inventory Capacity 8 | . 8 8 8 5 5 5 Average Capacity 6 | . 8 8 7 5 5 5 Most Carried 8 | . 7 8 8 5 5 5 Average Carried 5 | . 6 7 6 5 4 5 Final Capacity 8 | 8 8 8 5 5 5 5 Final Carried 8 | 6 6 8 5 5 5 5 Class Distribution -------------------- 100% | Mutant Dominant Class ---------------- Mutant | -10/Materials Mutant | -10/Mines Mutant | -9/Materials Mutant | -9/Mines Mutant | -7/Zion Mutant | -6/Proximity Caves Resources | -11 -10 -10 -9 -9 -7 -6 ----------- Run | Yrd Mat Min Mat Min Zio Pro Matter Collected 401 | 200 3 27 51 . 58 62 Remotely . | . . . . . . . Salvage Created 148 | . . 83 39 . . 26 Parts 26 | . . 12 11 . . 3 Haulers Intercepted . | . . . . . . . Recyclers Shooed 1 | . . . 1 . . . Parts Field Recycled . | . . . . . . . Retrieved Matter . | . . . . . . . Parts Self-Destructed 16 | . . . . . . 16 Prevented 2 | . . . . . . 2 Kills | -11 -10 -10 -9 -9 -7 -6 ------- Run | Yrd Mat Min Mat Min Zio Pro Combat Hostiles Destroyed 6 | . . . 5 . . 1 Melee 1 | . . . . . . 1 Guns 2 | . . . 2 . . . AOE 3 | . . . 3 . . . Classes Destroyed 3 | . . 2 1 . . . Worker 3 | . . 3 . . . . Tunneler 1 | . . 1 . . . . Swarmer 6 | . . . 5 . . 1 Best Kill Streak 3 | . . 2 3 . . 1 Combat Bots Only 3 | . . . 3 . . 1 Max Kills in Single Turn 2 | . . 1 2 . . 1 Gunslinging . | . . . . . . . Exploded 2 | . . . 2 . . . Melee 1 | . . . . . . 1 Uniques/NPCs Destroyed . | . . . . . . . Combat | -11 -10 -10 -9 -9 -7 -6 -------- Run | Yrd Mat Min Mat Min Zio Pro Hostile Shots Fired 214 | . . . 125 . . 89 Missed 66 | . . . 41 . . 25 Damage Taken 1918 | . . . 860 . . 1058 Core 401 | . . . 176 . . 225 Absorbed by Shields . | . . . . . . . Core Remaining (%) 100 | 100 . 100 . . . . Volleys Fired 11 | . . . 11 . . . Largest 1 | . . . 1 . . . Hottest 33 | . . . 33 . . . Shots Fired 11 | . . . 11 . . . Gun 8 | . . . 8 . . . Cannon . | . . . . . . . Launcher 3 | . . . 3 . . . Special . | . . . . . . . Kinetic 8 | . . . 8 . . . Thermal . | . . . . . . . Explosive 3 | . . . 3 . . . Electromagnetic . | . . . . . . . Robot Hit Streak 2 | . . . 2 . . . Robot Miss Streak 3 | . . . 3 . . . Penetration Max . | . . . . . . . Secondary Targets . | . . . . . . . Shots Hit Robots 12 | . . 5 6 . . 1 Core Hits 12 | . 1 4 6 . . 1 Critical Kills . | . . . . . . . Critical Parts Destroyed . | . . . . . . . Critical Strikes . | . . . . . . . Melee Attacks 241 | . . 5 4 . 229 3 Impact 133 | . . . . . 133 . Slashing 108 | . . 5 4 . 96 3 Piercing . | . . . . . . . Sneak Attacks 5 | . . 5 . . . . Combat Hostiles . | . . . . . . . Follow-up Attacks . | . . . . . . . Damage Inflicted 621 | . 2 247 328 . . 44 Guns 75 | . . . 75 . . . Cannons . | . . . . . . . Explosions 187 | . . . 187 . . . Melee 316 | . . 247 25 . . 44 Ramming 43 | . 2 . 41 . . . Kinetic 75 | . . . 75 . . . Thermal . | . . . . . . . Explosive 187 | . . . 187 . . . Electromagnetic . | . . . . . . . Impact . | . . . . . . . Slashing 316 | . . 247 25 . . 44 Piercing . | . . . . . . . Highest Corruption 1 | . . . 1 1 1 . Average Corruption 1 | . . . 1 1 1 . Corruption Purged . | . . . . . . . Corruption Blocked . | . . . . . . . Effects 1 | . . . 1 . . . Matter Fused 1 | . . . 1 . . . Overload Shots . | . . . . . . . Overflow Damage 31 | . . 6 25 . . . Projectiles . | . . . . . . . Explosions 20 | . . . 20 . . . Melee 11 | . . 6 5 . . . Knockbacks 1 | . . . 1 . . . Impact 1 | . . . 1 . . . Kinetic . | . . . . . . . Secondary . | . . . . . . . Self-Inflicted Damage 33 | . . . 33 . . . Shots 1 | . . . 1 . . . Rammed 7 | . . . 7 . . . Targets Rammed 9 | . 2 . 7 . . . Kicked 2 | . 2 . . . . . Crushed . | . . . . . . . Highest Temperature 17 | . . . . . . 17 Average Temperature 17 | . . . . . . 17 Received Heat Transfer 399 | . . . 84 . . 315 Siege Activations . | . . . . . . . Robots Corrupted . | . . . . . . . Combat Hostiles . | . . . . . . . Parts Fried . | . . . . . . . Impact Corruptions . | . . . . . . . Robots Melted . | . . . . . . . Combat Hostiles . | . . . . . . . Parts Melted . | . . . . . . . Heat Transferred . | . . . . . . . Parts Sabotaged . | . . . . . . . Parts Stolen . | . . . . . . . Parts Stripped . | . . . . . . . Power Chain Reactions . | . . . . . . . Alert | -11 -10 -10 -9 -9 -7 -6 ------- Run | Yrd Mat Min Mat Min Zio Pro Peak Influence 232 | . . 20 232 90 . . Initial 90 | . . . 7 90 . . Average 24 | . . 1 102 90 . . Maximum Alert Level 1 | . . . 1 . . . Low Security (%) 97 | . 100 100 88 100 . . Level 1 2 | . . . 11 . . . Level 2 . | . . . . . . . Level 3 . | . . . . . . . Level 4 . | . . . . . . . Level 5 . | . . . . . . . High Security . | . . . . . . . Max Security . | . . . . . . . Squads Dispatched 2 | . . . 1 . . 1 Investigation 2 | . . . 1 . . 1 Extermination . | . . . . . . . Reinforcement . | . . . . . . . Assault . | . . . . . . . Garrison . | . . . . . . . Intercept . | . . . . . . . Searches Triggered . | . . . . . . . Construction Impeded . | . . . . . . . Haulers Reinforced . | . . . . . . . Active Scanning Responses . | . . . . . . . Cargo Convoy Interrupts . | . . . . . . . Stealth | -11 -10 -10 -9 -9 -7 -6 --------- Run | Yrd Mat Min Mat Min Zio Pro Distress Signals 2 | . . . 2 . . . Communications Jammed . | . . . . . . . Distress Signals . | . . . . . . . Times Spotted 36 | . . . 20 . . 16 Peak Tracking Total 10 | . . . 10 . . 7 Tactical Retreats 2 | . . . 1 . . 1 Traps | -11 -10 -10 -9 -9 -7 -6 ------- Run | Yrd Mat Min Mat Min Zio Pro Traps Triggered 1 | . . 1 . . . . Indirectly . | . . . . . . . Trap Hack Attempts . | . . . . . . . Triggered . | . . . . . . . Disarmed . | . . . . . . . Reprogrammed . | . . . . . . . Reused . | . . . . . . . Traps Extracted . | . . . . . . . Installed . | . . . . . . . Triggered . | . . . . . . . Machines | -11 -10 -10 -9 -9 -7 -6 ---------- Run | Yrd Mat Min Mat Min Zio Pro Machines Disabled 1 | . . . 1 . . . Max in Single Turn 1 | . . . 1 . . . Machines Repaired . | . . . . . . . Machines Dismantled . | . . . . . . . Machines Sabotaged . | . . . . . . . Overloaded Fab Kills . | . . . . . . . Hacking | -11 -10 -10 -9 -9 -7 -6 --------- Run | Yrd Mat Min Mat Min Zio Pro Machines Accessed 5 | . . 1 3 . . 1 Terminals 4 | . . . 3 . . 1 Fabricators . | . . . . . . . Repair Stations . | . . . . . . . Recycling Units . | . . . . . . . Scanalyzers . | . . . . . . . Garrison Access . | . . . . . . . Total Hacks 20 | . . 1 14 . . 5 Successful 12 | . . 1 6 . . 5 Failed 8 | . . . 8 . . . Catastrophic 2 | . . . 2 . . . Database Lockouts . | . . . . . . . Manual 15 | . . . 13 . 1 1 Terminals 19 | . . . 14 . . 5 Fabricators . | . . . . . . . Repair Stations . | . . . . . . . Recycling Units . | . . . . . . . Scanalyzers . | . . . . . . . Garrison Access . | . . . . . . . Terminal Hacks 9 | . . 1 3 . . 5 Record 6 | . . . 1 . . 5 Open Door 1 | . . 1 . . . . Level Access Points 1 | . . . 1 . . . Branch Access Points 1 | . . . 1 . . . Fabricator Hacks . | . . . . . . . Repair Station Hacks . | . . . . . . . Recycling Unit Hacks . | . . . . . . . Scanalyzer . | . . . . . . . Garrison Access Hacks . | . . . . . . . Unauthorized Hacks 3 | . . . 3 . . . Terminals 3 | . . . 3 . . . Botnet 3 | . . . 3 . . . Fabricators . | . . . . . . . Repair Stations . | . . . . . . . Recycling Units . | . . . . . . . Scanalyzers . | . . . . . . . Garrison Access . | . . . . . . . Data Cores Recovered . | . . . . . . . Used . | . . . . . . . Hacking Detections 4 | . . . 3 . . 1 Full Trace Events 4 | . . . 3 . . 1 Feedback Events . | . . . . . . . Feedback Blocked . | . . . . . . . Robot Schematics Acquired 4 | . . . . . 4 . Robots Built . | . . . . . . . Authchips . | . . . . . . . Time . | . . . . . . . Total Robot Build Rating . | . . . . . . . Part Schematics Acquired 13 | . . . . . 13 . Parts Built . | . . . . . . . Authchips . | . . . . . . . Time . | . . . . . . . Total Part Build Rating . | . . . . . . . Parts Repaired . | . . . . . . . Time . | . . . . . . . Parts Recycled . | . . . . . . . Recycled Matter . | . . . . . . . Retrieved Matter . | . . . . . . . Retrieved Components . | . . . . . . . Parts Scanalyzed . | . . . . . . . Part Schematics Acquired . | . . . . . . . Parts Damaged . | . . . . . . . Bothacking | -11 -10 -10 -9 -9 -7 -6 ------------ Run | Yrd Mat Min Mat Min Zio Pro Used RIF Installer . | . . . . . . . Robots Hacked . | . . . . . . . Non-combat . | . . . . . . . Combat . | . . . . . . . Robot Hacks Applied . | . . . . . . . Relay Couplers Released . | . . . . . . . Fabnet Peak Effective % . | . . . . . . . Robots Rewired . | . . . . . . . Allies Hacked . | . . . . . . . Hacks Repelled . | . . . . . . . Allies | -11 -10 -10 -9 -9 -7 -6 -------- Run | Yrd Mat Min Mat Min Zio Pro Total Allies 8 | . . 1 . 3 4 . Largest Group 7 | . . 1 1 3 7 7 Highest-Rated Group 196 | . . 31 31 40 196 196 Highest-Rated Ally 41 | . . 31 31 16 41 41 Total Orders 2 | . . . . . 2 . ROAM 1 | . . . . . 1 . FOLLOW 1 | . . . . . 1 . Ally Attacks 64 | . . . 6 . . 58 Total Damage 925 | . . . 64 . . 861 Kills 11 | . . . 1 . . 10 Allies Corrupted . | . . . . . . . Allies Melted . | . . . . . . . Intel | -11 -10 -10 -9 -9 -7 -6 ------- Run | Yrd Mat Min Mat Min Zio Pro Robot Analysis Total . | . . . . . . . Derelict Logs Recovered 3 | . . 2 . . 1 . Drone Launches . | . . . . . . . Drone Recoveries . | . . . . . . . Exploration | -11 -10 -10 -9 -9 -7 -6 ------------- Run | Yrd Mat Min Mat Min Zio Pro Turns Passed 3652 | . 85 966 285 26 1998 292 Spaces Moved 1873 | 1 67 437 243 41 932 152 Core 1 | . . . . . . 1 Treads 709 | . . . . . 558 151 Legs 644 | 1 67 437 139 . . . Wheels . | . . . . . . . Hover 519 | . . . 104 41 374 . Flight . | . . . . . . . Fastest Speed 56 | 120 120 120 56 56 56 170 Average Speed 129 | 120 120 120 93 56 140 170 Slowest Speed 200 | 120 120 120 180 56 170 200 Overloaded Moves . | . . . . . . . Propulsion Burnouts . | . . . . . . . Robots Hopped . | . . . . . . . Cave-ins Triggered . | . . . . . . . Exploration Rate (%) 34 | 1 19 68 35 14 78 28 Regions Visited 6 Branch Regions 4 Pre-discovered Areas 4 | . . 1 . . 3 . Known Exits Taken 1 | . . . 1 . . . Unknown Exits Taken 5 | 1 1 1 . 1 1 . Scrap Searched 7 | . . 3 . 2 2 . Spaces Dug . | . . . . . . . Terrain Destroyed 18 | . . . 18 . . . Melee . | . . . . . . . Projectile . | . . . . . . . AOE 18 | . . . 18 . . . Terrain Rammed . | . . . . . . . Walls Destroyed . | . . . . . . . Machines Disabled . | . . . . . . . Actions | -11 -10 -10 -9 -9 -7 -6 --------- Run | Yrd Mat Min Mat Min Zio Pro Total 2692 | . 71 868 282 43 1248 180 Wait 532 | . . 419 . 3 91 19 Move 1867 | . 66 436 242 40 931 152 Hop . | . . . . . . . Pick Up 10 | . . 4 2 . 4 . Fast Attach 11 | . 1 2 4 . 1 3 Attach 6 | . . . 3 . 3 . Detach 4 | . 1 . 2 . 1 . Swap 2 | . . . . . 2 . Drop 18 | . 1 2 7 . 7 1 Fire 11 | . . . 11 . . . Melee 220 | . . 5 4 . 208 3 Ram 7 | . . . 7 . . . Kick 2 | . 2 . . . . . Crush . | . . . . . . . Escape Stasis . | . . . . . . . Rewire 2 | . . . . . . 2 Trap . | . . . . . . . Miscellaneous . | . . . . . . . Route ------- -11/Scrapyard -10/Materials -10/Mines (discovered 2 exits: *Mat x2) -9/Materials (discovered 4 exits: Mat x3 / *Min) -9/Mines -7/Zion -6/Proximity Caves History --------- Turn | Location | Event 1 | -11/Scrapyard | Discovered new exit (range 0) 1 | -11/Scrapyard | Entered Materials 68 | -10/Materials | Discovered new exit (range 16) 86 | -10/Materials | Entered Mines 97 | -10/Mines | Met a Derelict who couldn't figure out how to use a Trap Extractor 122 | -10/Mines | Met a Derelict bent on vengeance 279 | -10/Mines | Discovered new exit (range 16) 313 | -10/Mines | Build established: Mutant 373 | -10/Mines | Learned location of Zion (-7) 414 | -10/Mines | Discovered new exit (range 9) 436 | -10/Mines | Learned location of 1 exit from Materials 937 | -10/Mines | Received a Mining Laser from a helpful Derelict 1052 | -10/Mines | Entered Materials 1052 | -9/Materials | Accompanied by 1 ally 1052 | -9/Materials | Evolved 2 slots: Utility x2 1053 | -9/Materials | Identified exit to Materials 1295 | -9/Materials | Identified exit to Mines 1337 | -9/Materials | Entered Mines 1339 | -9/Mines | Lost 3 parts (3u) 1339 | -9/Mines | Assisted by bots powering up and referring to "LRC-V3" 1348 | -9/Mines | A Derelict revealed a hidden shortcut to a safe place 1363 | -9/Mines | Entered Zion 1363 | -7/Zion | Accompanied by 3 allies 1428 | -7/Zion | System corruption cleaned by Quarantine Array 1463 | -7/Zion | Learned Factory emergency access door positions 1510 | -7/Zion | Learned location of Warlord (-5) 1575 | -7/Zion | Found GAL Module 2013 | -7/Zion | Found CR-A16's Pointy Stick 2969 | -7/Zion | Imprinted 2971 | -7/Zion | Declared Zion's savior 3342 | -7/Zion | Discovered new exit (range 12) 3361 | -7/Zion | Entered Proximity Caves 3361 | -6/Proximity Caves | Accompanied by 7 allies 3407 | -6/Proximity Caves | Attracted the attention of an 0b10 base 3479 | -6/Proximity Caves | Learned Factory security intel 3626 | -6/Proximity Caves | Core integrity fell below 50% 3643 | -6/Proximity Caves | Core integrity fell below 20% 3653 | -6/Proximity Caves | Destroyed by G-50 Soldier with Heavy Laser Last Messages --------------- 03542_ Destroyed VTOL Module. 03549_ Trooper 2b destroyed. 03549_ G-50 Soldier destroyed. 03572_ Imp. Heat Sink fries itself beyond repair. 03592_ 9C-RW2(M) destroyed. 03602_ R0-L8R(M) suffers critical hit (Burn). 03616_ R0-L8R(M) destroyed. 03625_ ZG-2T5(M) suffers critical hit (Burn). 03634_ Critical hit (Burn: +37). 03641_ S-27 Virus destroyed. 03641_ XC-BXS(M) destroyed. 03642_ Adv. Heat Sink destroyed. 03642_ Critical hit (Burn: +37). 03643_ Arm. Treads destroyed. 03644_ S-27 Virus suffers critical hit (Burn). 03644_ S-27 Virus destroyed. 03645_ Lgt. Nuclear Core fries itself beyond repair. 03651_ Critical hit (Destroy). 03651_ Arm. Treads destroyed. 03653_ Lgt. Nuclear Core destroyed. Map ----- +----------------------------------------------------+ | ?????????????????????????????????????????????????? | | ?????????????????????????????????????????????????? | | ?????????????????????????????????????????????????? | | ?????????????????????????????????????????????????? | | ?????????????????????????????????????????????????? | | ?????????????????????????????????????????????????? | | ?????????????????????????????????????????????????? | | ?????????????????????????????????????????????????? | | ?????????????????????????????????????????????????? | | ?????????????????????????????????????????????????? | | ????????????????????????? ??????????????????????? | | ????????????????????????? ??????????????????????? | | ????????????????????????? ?##???????????????????? | | ????????????????????????? # #?? ??????????????? | | ???????????????????????## ### #?????????????? | | ???????????????????????# ##????????????? | | ??????????????????????? ##???????????? | | ???????????????????????# ???????????? | | ???????????????????????# ????????????? | | ???????????????????????# ?????????????? | | ???????????????????????? ???????????????? | | ???????????????????????? ????????????????? | | ????????????????????????# ??????????????????? | | ????????????????????????# #???????????????????? | | ????????????????????????# ##??????????????????? | | ????????????????????????#@ #??????????????????? | | ????????????????????????# #??????????????????? | | ????????????????????????# ##??# ### #?# | | ###########?????????????# #??## #####?## | | # ########??????## g #???## ## #??## | | ##??????##gs #????# ##??## | | ##?####### g##????# # #???## | | ### #?# %#?????### ####??### | | #### ##?????## #???### | | ### ###?# #????## ##?## | | ??### ##??# ##?### #?# | | ????## ### ##?# ### ##?# | | ?????###?## ## #### #??# | | ???????##### # ### % ##??## ### | | #?????## ## # %! = ##???##### | | ##?#### ## [ ##????## | | ### ! % =%% ## ## #???## | | ## =% % # ### #???# | | [ ## # #?#### ###???# | | ### #????####?????# | | ######## ##### ##??????#####?## | | *= ### ##?# #?## ###??????## ### # | | ####% ## #####?# #????????# ## | | ##??#[ ## ##???# ## #????????# #? | | ????# ## ###?# ### ##????????## ### | +----------------------------------------------------+ Best States ------------- Heat Dissipation 47 Energy Generation 18 Energy Capacity 250 Matter Stores 300 Matter Capacity 300 Sight Range 16 Robot Scan Range 15 Terrain Scan Density 10 Armor Coverage 150 Evasion (%) 55 Recoil Reduction 2 Offensive Hacking 10 Item Schematics ----------------- EM Disruption Field | -7/Zion | Archive Gauss Cannon | -7/Zion | Archive Gravmag System | -7/Zion | Archive Hvy. Machine Gun | -7/Zion | Archive Adv. Cooling System | -7/Zion | Archive Xenon Bombardment Thruster | -7/Zion | Archive Flexi-carbon Leg | -7/Zion | Archive Imp. Deuterium Engine | -7/Zion | Archive Power Sword | -7/Zion | Archive Imp. Medium Armor Plating | -7/Zion | Archive Imp. Core Shielding | -7/Zion | Archive Imp. Particle Charger | -7/Zion | Archive Armor Integrity Analyzer | -7/Zion | Archive Robot Schematics ------------------ X-82 Rainmaker | -7/Zion | Archive Y-54 Guardian | -7/Zion | Archive M-28 Smith | -7/Zion | Archive W-25 Informer | -7/Zion | Archive Fabricated ------------ Nothing Alien Tech Used ----------------- None Achievements -------------- None Challenges ------------ None Game ------ Seed Cogmind Manual? 1 Play Time 00:19:17 Cumulative 41.6 hours Start 2024.04.17 @ 01:23:48 End 2024.04.17 @ 01:42:58 Sessions 1 Manual Loads 0 Difficulty Rogue Special Mode None Game No. 62 Rogue 61 Adventurer 1 Explorer 0 Win Type - Total 2 Types 2/0/0/0/0/0/0/0/0 Lore% 26 Gallery% 47 Achievement% 39 Wizard Run 0 Options --------- Layout 0 ASCII 0 Keyboard 0 Movement Numpad Keybinds 0 Fullscreen 1 Font 18/SmallcapsGlow Map View 76x50 Zoom Use 0% Tactical HUD 1 Map Filters NONE Filters NONE Steam 1 RUN: f9cb1fb4-9c3d-40fe-84c1-268e1c4ff37c